fUST/lending_fUST_20250427
["ID","MTS","AMOUNT","RATE_DAILY","PERIOD"]
[359141040,1745734239483,-2428.93,0.00016438,2]
[359141041,1745734239493,-1000.0,0.00016438,2]
[359141042,1745734239503,-641.64019336,0.00016473,2]
[359141043,1745734239512,-229.21089404,0.00016474,2]
[359141044,1745734239523,-311.78265095,0.0001659,2]
[359141045,1745734239533,-1708.20385293,0.00016625,2]
[359141046,1745734239544,-250.0,0.000167,2]
[359141047,1745734239554,-151.0,0.00016712,2]
[359141048,1745734239564,-400.0,0.00016712,2]
[359141049,1745734239574,-156.993649,0.00016712,2]
[359141050,1745734239583,-400.0,0.00016712,2]
[359141051,1745734239595,-151.0,0.00016712,2]
[359141052,1745734239606,-151.0,0.00016712,2]
[359141053,1745734239617,-400.0,0.00016712,2]
[359141054,1745734239626,-1511.16,0.00016712,2]
[359141056,1745734239638,-151.0,0.00016712,2]
[359141058,1745734239647,-400.0,0.00016712,2]
[359141060,1745734239658,-400.0,0.00016712,2]
[359141062,1745734239668,-400.0,0.00016712,2]
[359141064,1745734239679,-400.0,0.00016712,2]
[359141066,1745734239689,-151.0,0.00016712,2]
[359141068,1745734239699,-151.0,0.00016712,2]
[359141070,1745734239710,-151.0,0.00016712,2]
[359141072,1745734239720,-400.0,0.00016712,2]
[359141075,1745734239731,-151.0,0.00016712,2]
[359141080,1745734239901,-300.0,0.00016712,2]
[359141081,1745734239913,-400.0,0.00016712,2]
[359141082,1745734239923,-400.0,0.00016712,2]
[359141083,1745734239933,-400.0,0.00016712,2]
[359141084,1745734239943,-400.0,0.00016712,2]
[359141085,1745734239953,-400.0,0.00016712,2]
[359141086,1745734239963,-400.0,0.00016712,2]
[359141088,1745734239973,-151.0,0.00016712,2]
[359141090,1745734239982,-400.0,0.00016712,2]
[359141092,1745734239992,-151.0,0.00016712,2]
[359141094,1745734240002,-400.0,0.00016712,2]
[359141095,1745734240013,-151.0,0.00016712,2]
[359141096,1745734240023,-151.0,0.00016712,2]
[359141097,1745734240035,-400.0,0.00016712,2]
[359141098,1745734240045,-400.0,0.00016712,2]
[359141099,1745734240055,-151.0,0.00016712,2]
[359141100,1745734240065,-400.0,0.00016712,2]
[359141101,1745734240076,-400.0,0.00016712,2]
[359141102,1745734240089,-400.0,0.00016712,2]
[359141103,1745734240099,-400.0,0.00016712,2]
[359141104,1745734240110,-400.0,0.00016712,2]
[359141105,1745734240120,-400.0,0.00016712,2]
[359141106,1745734240132,-151.0,0.00016712,2]
[359141107,1745734240142,-151.376095,0.00016712,2]
[359141108,1745734240152,-400.0,0.00016712,2]
[359141109,1745734240163,-400.0,0.00016712,2]
[359141110,1745734240174,-400.0,0.00016712,2]
[359141111,1745734240183,-1407.07,0.00016712,2]
[359141112,1745734240193,-1604.74,0.00016712,2]
[359141113,1745734240202,-400.0,0.00016712,2]
[359141114,1745734240212,-1831.91,0.00016712,2]
[359141115,1745734240221,-400.0,0.00016712,2]
[359141116,1745734240231,-400.0,0.00016712,2]
[359141117,1745734240241,-400.0,0.00016712,2]
[359141118,1745734240251,-1632.75,0.00016712,2]
[359141119,1745734240260,-400.0,0.00016712,2]
[359141120,1745734240271,-400.0,0.00016712,2]
[359141121,1745734240280,-400.0,0.00016712,2]
[359141122,1745734240290,-400.0,0.00016712,2]
[359141123,1745734240300,-400.0,0.00016712,2]
[359141124,1745734240311,-1924.77,0.00016712,2]
[359141125,1745734240321,-200.0,0.00016712,2]
[359141126,1745734240331,-400.0,0.00016712,2]
[359141127,1745734240341,-151.0,0.00016712,2]
[359141128,1745734240351,-151.0,0.00016712,2]
[359141129,1745734240360,-400.0,0.00016712,2]
[359141130,1745734240370,-400.0,0.00016712,2]
[359141131,1745734240379,-400.0,0.00016712,2]
[359141132,1745734240389,-400.0,0.00016712,2]
[359141133,1745734240399,-400.0,0.00016712,2]
[359141134,1745734240410,-400.0,0.00016712,2]
[359141135,1745734240420,-400.0,0.00016712,2]
[359141136,1745734240430,-400.0,0.00016712,2]
[359141137,1745734240439,-151.0,0.00016712,2]
[359141138,1745734240449,-151.0,0.00016712,2]
[359141139,1745734240459,-400.0,0.00016712,2]
[359141140,1745734240469,-400.0,0.00016712,2]
[359141141,1745734240479,-151.0,0.00016712,2]
[359141142,1745734240488,-400.0,0.00016712,2]
[359141143,1745734240499,-151.0,0.00016712,2]
[359141144,1745734240508,-400.0,0.00016712,2]
[359141145,1745734240518,-400.0,0.00016712,2]
[359141146,1745734240528,-400.0,0.00016712,2]
[359141147,1745734240538,-400.0,0.00016712,2]
[359141148,1745734240548,-400.0,0.00016712,2]
[359141149,1745734240557,-151.0,0.00016712,2]
[359141150,1745734240567,-190.834376,0.00016712,2]
[359141151,1745734240576,-151.0,0.00016712,2]
[359141152,1745734240586,-400.0,0.00016712,2]
[359141153,1745734240595,-190.834376,0.00016712,2]
[359141154,1745734240605,-400.0,0.00016712,2]
[359141155,1745734240615,-151.0,0.00016712,2]
[359141156,1745734240624,-215.064476,0.00016712,2]
[359141157,1745734240634,-400.0,0.00016712,2]
[359141158,1745734240644,-151.0,0.00016712,2]
[359141159,1745734240653,-151.0,0.00016712,2]
[359141160,1745734240663,-400.0,0.00016712,2]
[359141161,1745734240672,-400.0,0.00016712,2]
[359141162,1745734240682,-400.0,0.00016712,2]
[359141163,1745734240691,-151.0,0.00016712,2]
[359141164,1745734240701,-151.0,0.00016712,2]
[359141165,1745734240710,-400.0,0.00016712,2]
[359141166,1745734240719,-2579.23,0.00016712,2]
[359141167,1745734240728,-400.0,0.00016712,2]
[359141168,1745734240738,-400.0,0.00016712,2]
[359141169,1745734240748,-400.0,0.00016712,2]
[359141170,1745734240758,-2200.56,0.00016712,2]
[359141171,1745734240767,-400.0,0.00016712,2]
[359141172,1745734240777,-400.0,0.00016712,2]
[359141173,1745734240787,-527.66,0.00016712,2]
[359141174,1745734240796,-400.0,0.00016712,2]
[359141175,1745734240806,-400.0,0.00016712,2]
[359141176,1745734240816,-3216.74,0.00016712,2]
[359141177,1745734240826,-2768.77,0.00016712,2]
[359141178,1745734240836,-400.0,0.00016712,2]
[359141179,1745734240846,-3261.8,0.00016712,2]
[359141180,1745734240856,-400.0,0.00016712,2]
[359141181,1745734240866,-200.0,0.00016712,2]
[359141182,1745734240875,-400.0,0.00016712,2]
[359141183,1745734240885,-400.0,0.00016712,2]
[359141184,1745734240894,-151.0,0.00016712,2]
[359141185,1745734240903,-2460.7,0.00016712,2]
[359141186,1745734240912,-151.0,0.00016712,2]
[359141187,1745734240922,-1884.76,0.00016712,2]
[359141188,1745734240933,-151.0,0.00016712,2]
[359141189,1745734240942,-151.0,0.00016712,2]
[359141190,1745734240951,-1890.52,0.00016712,2]
[359141191,1745734240961,-400.0,0.00016712,2]
[359141192,1745734240971,-2045.13,0.00016712,2]
[359141193,1745734240980,-400.0,0.00016712,2]
[359141194,1745734240990,-2216.91,0.00016712,2]
[359141195,1745734241000,-400.0,0.00016712,2]
[359141196,1745734241009,-400.0,0.00016712,2]
[359141197,1745734241020,-400.0,0.00016712,2]
[359141198,1745734241029,-400.0,0.00016712,2]
[359141199,1745734241038,-400.0,0.00016712,2]
[359141200,1745734241048,-400.0,0.00016712,2]
[359141201,1745734241058,-151.0,0.00016712,2]
[359141202,1745734241067,-400.0,0.00016712,2]
[359141203,1745734241077,-1987.74,0.00016712,2]
[359141204,1745734241088,-400.0,0.00016712,2]
[359141205,1745734241097,-400.0,0.00016712,2]
[359141206,1745734241107,-151.0,0.00016712,2]
[359141207,1745734241116,-151.0,0.00016712,2]
[359141208,1745734241126,-400.0,0.00016712,2]
[359141209,1745734241136,-400.0,0.00016712,2]
[359141210,1745734241145,-400.0,0.00016712,2]
[359141211,1745734241156,-400.0,0.00016712,2]
[359141212,1745734241166,-2164.02,0.00016712,2]
[359141213,1745734241175,-1670.38,0.00016712,2]
[359141214,1745734241185,-400.0,0.00016712,2]
[359141215,1745734241194,-151.0,0.00016712,2]
[359141216,1745734241204,-151.0,0.00016712,2]
[359141217,1745734241213,-400.0,0.00016712,2]
[359141218,1745734241223,-150.31431257,0.00016712,2]
[359141219,1745734241232,-158.152051,0.00016712,2]
[359141220,1745734241243,-151.0,0.00016712,2]
[359141221,1745734241252,-153.070132,0.00016712,2]
[359141222,1745734241261,-400.0,0.00016712,2]
[359141223,1745734241271,-2295.8,0.00016712,2]
[359141224,1745734241281,-3376.25,0.00016712,2]
[359141225,1745734241291,-3020.21,0.00016712,2]
[359141226,1745734241301,-400.0,0.00016712,2]
[359141227,1745734241313,-400.0,0.00016712,2]
[359141228,1745734241325,-151.0,0.00016712,2]
[359141229,1745734241335,-1837.86,0.00016712,2]
[359141230,1745734241346,-554.58,0.00016712,2]
[359141231,1745734241357,-1873.63,0.00016712,2]
[359141232,1745734241366,-400.0,0.00016712,2]
[359141233,1745734241376,-210.59050031,0.00016712,2]
[359141234,1745734241386,-400.0,0.00016712,2]
[359141235,1745734241395,-2088.56,0.00016712,2]
[359141236,1745734241405,-380.4170494,0.00016712,2]
[359141237,1745734241415,-400.0,0.00016712,2]
[359141238,1745734241426,-400.0,0.00016712,2]
[359141239,1745734241436,-1471.33,0.00016712,2]
[359141240,1745734241446,-400.0,0.00016712,2]
[359141241,1745734241455,-3718.64,0.00016712,2]
[359141242,1745734241465,-400.0,0.00016712,2]
[359141243,1745734241475,-620.879097,0.00016712,2]
[359141244,1745734241485,-620.879097,0.00016712,2]
[359141245,1745734241494,-400.0,0.00016712,2]
[359141246,1745734241505,-620.879097,0.00016712,2]
[359141247,1745734241515,-151.0,0.00016712,2]
[359141248,1745734241524,-620.879097,0.00016712,2]
[359141249,1745734241535,-400.0,0.00016712,2]
[359141250,1745734241544,-166.140953,0.00016712,2]
[359141251,1745734241554,-2159.5,0.00016712,2]
[359141252,1745734241563,-400.0,0.00016712,2]
[359141253,1745734241573,-1071.16,0.00016712,2]
[359141254,1745734241584,-306.165267,0.00016712,2]
[359141255,1745734241597,-306.165267,0.00016712,2]
[359141256,1745734241608,-400.0,0.00016712,2]
[359141257,1745734241617,-306.165267,0.00016712,2]
[359141258,1745734241629,-306.165267,0.00016712,2]
[359141259,1745734241642,-151.0,0.00016712,2]
[359141260,1745734241653,-151.0,0.00016712,2]
[359141261,1745734241663,-1554.19,0.00016712,2]
[359141262,1745734241674,-871.8,0.00016712,2]
[359141263,1745734241685,-1077.6,0.00016712,2]
[359141264,1745734241695,-400.0,0.00016712,2]
[359141265,1745734241706,-218.09020635,0.00016712,2]
[359141266,1745734241717,-431.76,0.00016712,2]
[359141267,1745734241727,-793.59,0.00016712,2]
[359141268,1745734241738,-400.0,0.00016712,2]
[359141269,1745734241747,-2428.93,0.00016712,2]
[359141270,1745734241757,-1500.0,0.00016712,2]
[359141271,1745734241767,-823.0,0.00016761,2]
[359141272,1745734241776,-501.03088192,0.00016773,2]
[359141273,1745734241786,-500.0,0.00016773,2]
[359141274,1745734241795,-501.37081242,0.00016773,2]
[359141275,1745734241805,-501.56552259,0.00016773,2]
[359141276,1745734241814,-635.70677807,0.00016773,2]
[359141277,1745734241824,-501.14532963,0.00016773,2]
[359141278,1745734241834,-500.0,0.00016773,2]
[359141279,1745734241843,-252.591565,0.00016773,2]
[359141280,1745734241853,-501.10407,0.00016773,2]
[359141281,1745734241862,-500.0,0.00016773,2]
[359141282,1745734241871,-500.0,0.00016773,2]
[359141283,1745734241880,-500.0,0.00016773,2]
[359141284,1745734241890,-236.1534153,0.00016773,2]
[359141285,1745734241899,-500.0,0.00016773,2]
[359141286,1745734241910,-588.88960299,0.00016773,2]
[359141287,1745734241919,-584.66115124,0.00016773,2]
[359141288,1745734241929,-500.0,0.00016773,2]
[359141289,1745734241941,-1708.20385293,0.000169,2]
[359141290,1745734241952,-339.83536797,0.00016917,2]
[359141291,1745734241964,-162.87663101,0.00016973,2]
[359141292,1745734241974,-500.0,0.00016973,2]
[359141293,1745734241984,-500.0,0.00016973,2]
[359141294,1745734241995,-500.0,0.00016973,2]
[359141295,1745734242005,-500.0,0.00016973,2]
[359141296,1745734242015,-500.0,0.00016973,2]
[359141297,1745734242025,-151.0,0.00016973,2]
[359141298,1745734242036,-151.0,0.00016986,2]
[359141299,1745734242046,-400.0,0.00016986,2]
[359141300,1745734242056,-200.0,0.00016986,2]
[359141301,1745734242066,-200.0,0.00016986,2]
[359141302,1745734242076,-1511.16,0.00016986,2]
[359141303,1745734242086,-151.0,0.00016986,2]
[359141304,1745734242096,-400.0,0.00016986,2]
[359141305,1745734242105,-430.88,0.00016986,2]
[359141306,1745734242114,-200.0,0.00016986,2]
[359141307,1745734242124,-400.0,0.00016986,2]
[359141308,1745734242134,-151.0,0.00016986,2]
[359141309,1745734242145,-151.0,0.00016986,2]
[359141310,1745734242155,-400.0,0.00016986,2]
[359141311,1745734242165,-157.037072,0.00016986,2]
[359141312,1745734242175,-400.0,0.00016986,2]
[359141313,1745734242185,-400.0,0.00016986,2]
[359141314,1745734242195,-200.0,0.00016986,2]
[359141315,1745734242204,-400.0,0.00016986,2]
[359141316,1745734242214,-400.0,0.00016986,2]
[359141317,1745734242223,-400.0,0.00016986,2]
[359141318,1745734242233,-2518.084526,0.00016986,2]
[359141319,1745734242242,-288.172533,0.00016986,2]
[359141320,1745734242252,-400.0,0.00016986,2]
[359141321,1745734242262,-151.0,0.00016986,2]
[359141322,1745734242272,-151.0,0.00016986,2]
[359141323,1745734242282,-400.0,0.00016986,2]
[359141324,1745734242292,-151.0,0.00016986,2]
[359141325,1745734242302,-151.0,0.00016986,2]
[359141326,1745734242311,-400.0,0.00016986,2]
[359141327,1745734242321,-400.0,0.00016986,2]
[359141329,1745734242332,-151.0,0.00016986,2]
[359141331,1745734242341,-151.0,0.00016986,2]
[359141333,1745734242350,-400.0,0.00016986,2]
[359141334,1745734242360,-400.0,0.00016986,2]
[359141335,1745734242369,-400.0,0.00016986,2]
[359141336,1745734242379,-200.0,0.00016986,2]
[359141337,1745734242389,-400.0,0.00016986,2]
[359141338,1745734242398,-400.0,0.00016986,2]
[359141339,1745734242408,-151.0,0.00016986,2]
[359141340,1745734242418,-400.0,0.00016986,2]
[359141341,1745734242427,-400.0,0.00016986,2]
[359141343,1745734242437,-400.0,0.00016986,2]
[359141344,1745734242447,-1407.07,0.00016986,2]
[359141345,1745734242457,-1604.74,0.00016986,2]
[359141346,1745734242467,-400.0,0.00016986,2]
[359141347,1745734242476,-1831.91,0.00016986,2]
[359141348,1745734242486,-500.0,0.00016986,2]
[359141349,1745734242495,-400.0,0.00016986,2]
[359141350,1745734242505,-400.0,0.00016986,2]
[359141351,1745734242514,-1632.75,0.00016986,2]
[359141352,1745734242523,-400.0,0.00016986,2]
[359141353,1745734242533,-400.0,0.00016986,2]
[359141354,1745734242542,-400.0,0.00016986,2]
[359141355,1745734242552,-400.0,0.00016986,2]
[359141356,1745734242562,-1924.77,0.00016986,2]
[359141357,1745734242572,-400.0,0.00016986,2]
[359141358,1745734242581,-151.0,0.00016986,2]
[359141359,1745734242591,-400.0,0.00016986,2]
[359141360,1745734242600,-400.0,0.00016986,2]
[359141361,1745734242610,-400.0,0.00016986,2]
[359141362,1745734242620,-400.0,0.00016986,2]
[359141363,1745734242629,-400.0,0.00016986,2]
[359141364,1745734242638,-400.0,0.00016986,2]
[359141365,1745734242648,-400.0,0.00016986,2]
[359141366,1745734242658,-400.0,0.00016986,2]
[359141367,1745734242667,-400.0,0.00016986,2]
[359141369,1745734242677,-200.0,0.00016986,2]
[359141371,1745734242686,-400.0,0.00016986,2]
[359141372,1745734242696,-400.0,0.00016986,2]
[359141373,1745734242705,-400.0,0.00016986,2]
[359141374,1745734242714,-400.0,0.00016986,2]
[359141375,1745734242724,-400.0,0.00016986,2]
[359141376,1745734242733,-190.834376,0.00016986,2]
[359141377,1745734242743,-190.834376,0.00016986,2]
[359141378,1745734242753,-400.0,0.00016986,2]
[359141379,1745734242763,-190.834376,0.00016986,2]
[359141380,1745734242772,-190.834376,0.00016986,2]
[359141382,1745734242782,-400.0,0.00016986,2]
[359141384,1745734242792,-151.0,0.00016986,2]
[359141386,1745734242801,-400.0,0.00016986,2]
[359141388,1745734242811,-400.0,0.00016986,2]
[359141390,1745734242820,-400.0,0.00016986,2]
[359141391,1745734242830,-400.0,0.00016986,2]
[359141393,1745734242839,-165.272731,0.00016986,2]
[359141395,1745734242848,-400.0,0.00016986,2]
[359141396,1745734242858,-2579.23,0.00016986,2]
[359141397,1745734242867,-400.0,0.00016986,2]
[359141398,1745734242877,-400.0,0.00016986,2]
[359141399,1745734242887,-400.0,0.00016986,2]
[359141400,1745734242896,-2200.56,0.00016986,2]
[359141401,1745734242906,-545.24302045,0.00016986,2]
[359141402,1745734242915,-400.0,0.00016986,2]
[359141403,1745734242925,-527.66,0.00016986,2]
[359141404,1745734242935,-400.0,0.00016986,2]
[359141405,1745734242944,-400.0,0.00016986,2]
[359141406,1745734242954,-3216.74,0.00016986,2]
[359141407,1745734242964,-2768.77,0.00016986,2]
[359141408,1745734242974,-400.0,0.00016986,2]
[359141409,1745734242984,-3261.8,0.00016986,2]
[359141410,1745734242994,-400.0,0.00016986,2]
[359141411,1745734243135,-400.0,0.00016986,2]
[359141412,1745734243146,-400.0,0.00016986,2]
[359141413,1745734243156,-2460.7,0.00016986,2]
[359141414,1745734243166,-151.0,0.00016986,2]
[359141415,1745734243175,-151.0,0.00016986,2]
[359141416,1745734243185,-1884.76,0.00016986,2]
[359141418,1745734243194,-1890.52,0.00016986,2]
[359141419,1745734243204,-200.0,0.00016986,2]
[359141421,1745734243213,-2045.13,0.00016986,2]
[359141423,1745734243223,-400.0,0.00016986,2]
[359141424,1745734243232,-2216.91,0.00016986,2]
[359141426,1745734243242,-403.16,0.00016986,2]
[359141428,1745734243252,-400.0,0.00016986,2]
[359141429,1745734243262,-400.0,0.00016986,2]
[359141431,1745734243272,-400.0,0.00016986,2]
[359141433,1745734243281,-400.0,0.00016986,2]
[359141434,1745734243291,-306.3205114,0.00016986,2]
[359141436,1745734243300,-200.0,0.00016986,2]
[359141437,1745734243309,-1987.74,0.00016986,2]
[359141439,1745734243319,-300.0,0.00016986,2]
[359141441,1745734243329,-400.0,0.00016986,2]
[359141442,1745734243339,-151.0,0.00016986,2]
[359141444,1745734243348,-400.0,0.00016986,2]
[359141445,1745734243358,-151.0,0.00016986,2]
[359141447,1745734243367,-400.0,0.00016986,2]
[359141449,1745734243377,-400.0,0.00016986,2]
[359141450,1745734243387,-400.0,0.00016986,2]
[359141452,1745734243396,-2164.02,0.00016986,2]
[359141453,1745734243406,-1670.38,0.00016986,2]
[359141455,1745734243416,-400.0,0.00016986,2]
[359141456,1745734243426,-151.0,0.00016986,2]
[359141457,1745734243435,-151.0,0.00016986,2]
[359141458,1745734243445,-400.0,0.00016986,2]
[359141459,1745734243454,-400.0,0.00016986,2]
[359141460,1745734243464,-2295.8,0.00016986,2]
[359141461,1745734243473,-3376.25,0.00016986,2]
[359141462,1745734243482,-3020.21,0.00016986,2]
[359141463,1745734243492,-431.12,0.00016986,2]
[359141464,1745734243501,-400.0,0.00016986,2]
[359141465,1745734243510,-1837.86,0.00016986,2]
[359141466,1745734243520,-554.58,0.00016986,2]
[359141467,1745734243530,-1873.63,0.00016986,2]
[359141468,1745734243540,-400.0,0.00016986,2]
[359141469,1745734243550,-400.0,0.00016986,2]
[359141470,1745734243559,-2088.56,0.00016986,2]
[359141471,1745734243568,-400.0,0.00016986,2]
[359141472,1745734243578,-500.0,0.00016986,2]
[359141473,1745734243587,-1471.33,0.00016986,2]
[359141474,1745734243601,-3718.64,0.00016986,2]
[359141475,1745734243610,-400.0,0.00016986,2]
[359141476,1745734243619,-620.879097,0.00016986,2]
[359141477,1745734243628,-620.879097,0.00016986,2]
[359141478,1745734243638,-400.0,0.00016986,2]
[359141479,1745734243649,-620.879097,0.00016986,2]
[359141480,1745734243659,-351.06029014,0.00016986,2]
[359141481,1745734243668,-620.879097,0.00016986,2]
[359141482,1745734243678,-2159.5,0.00016986,2]
[359141483,1745734243688,-500.0,0.00016986,2]
[359141484,1745734243697,-1071.16,0.00016986,2]
[359141485,1745734243707,-306.165267,0.00016986,2]
[359141486,1745734243716,-306.165267,0.00016986,2]
[359141487,1745734243725,-306.165267,0.00016986,2]
[359141488,1745734243735,-306.165267,0.00016986,2]
[359141489,1745734243744,-151.0,0.00016986,2]
[359141490,1745734243754,-1554.19,0.00016986,2]
[359141491,1745734243763,-151.0,0.00016986,2]
[359141492,1745734243773,-871.8,0.00016986,2]
[359141493,1745734243783,-1077.6,0.00016986,2]
[359141494,1745734243793,-400.0,0.00016986,2]
[359141495,1745734243802,-431.76,0.00016986,2]
[359141496,1745734243812,-793.59,0.00016986,2]
[359141497,1745734243821,-200.0,0.00016986,2]
[359141498,1745734243831,-2428.93,0.00016986,2]
[359141499,1745734243841,-2000.0,0.00016986,2]
[359141500,1745734243851,-2837.17225728,0.00017,2]
[359141501,1745734244032,-479.54605281,0.00016438,2]
[359141502,1745734244043,-94491.82774272,0.00017,2]
[359141503,1745734244054,-151.0,0.00017,2]
[359141504,1745734244064,-151.0,0.00017,2]
[359141505,1745734244074,-151.0,0.00017,2]
[359141506,1745734244084,-151.0,0.00017,2]
[359141507,1745734244093,-151.0,0.00017,2]
[359141508,1745734244103,-213.090615,0.00017,2]
[359141509,1745734244112,-151.0,0.00017,2]
[359141510,1745734244121,-151.0,0.00017,2]
[359141511,1745734244132,-190.834376,0.00017,2]
[359141512,1745734244141,-190.834376,0.00017,2]
[359141513,1745734244151,-151.0,0.00017,2]
[359141514,1745734244162,-151.0,0.00017,2]
[359141515,1745734244171,-151.0,0.00017,2]
[359141516,1745734244180,-620.879097,0.00017,2]
[359141517,1745734244190,-620.879097,0.00017,2]
[359141518,1745734244199,-306.165267,0.00017,2]
[359141519,1745734244209,-306.165267,0.00017,2]
[359141520,1745734244219,-151.0,0.00017,2]
[359141521,1745734244228,-318.05006284,0.00017077,2]
[359141522,1745734244238,-207.4,0.00017255,2]
[359141523,1745734244247,-151.0,0.00017255,2]
[359141524,1745734244257,-151.0,0.0001726,2]
[359141525,1745734244266,-400.0,0.0001726,2]
[359141526,1745734244275,-1511.16,0.0001726,2]
[359141527,1745734244284,-400.0,0.0001726,2]
[359141528,1745734244293,-400.0,0.0001726,2]
[359141529,1745734244302,-151.0,0.0001726,2]
[359141530,1745734244311,-288.640384,0.0001726,2]
[359141531,1745734244321,-400.0,0.0001726,2]
[359141532,1745734244330,-400.0,0.0001726,2]
[359141533,1745734244339,-400.0,0.0001726,2]
[359141534,1745734244348,-400.0,0.0001726,2]
[359141535,1745734244358,-200.0,0.0001726,2]
[359141536,1745734244367,-400.0,0.0001726,2]
[359141537,1745734244377,-151.0,0.0001726,2]
[359141538,1745734244386,-400.0,0.0001726,2]
[359141539,1745734244395,-151.0,0.0001726,2]
[359141540,1745734244405,-400.0,0.0001726,2]
[359141541,1745734244415,-412.49,0.0001726,2]
[359141542,1745734244424,-400.0,0.0001726,2]
[359141543,1745734244433,-300.0,0.0001726,2]
[359141544,1745734244443,-400.0,0.0001726,2]
[359141545,1745734244452,-400.0,0.0001726,2]
[359141546,1745734244461,-400.0,0.0001726,2]
[359141547,1745734244471,-270.70836217,0.0001726,2]
[359141548,1745734244480,-400.0,0.0001726,2]
[359141549,1745734244489,-1407.07,0.0001726,2]
[359141550,1745734244498,-1604.74,0.0001726,2]
[359141551,1745734244508,-400.0,0.0001726,2]
[359141552,1745734244517,-1831.91,0.0001726,2]
[359141553,1745734244527,-400.0,0.0001726,2]
[359141554,1745734244537,-412.90113247,0.0001726,2]
[359141555,1745734244546,-1632.75,0.0001726,2]
[359141556,1745734244556,-409.80186877,0.0001726,2]
[359141557,1745734244566,-400.0,0.0001726,2]
[359141558,1745734244575,-400.0,0.0001726,2]
[359141559,1745734244584,-400.0,0.0001726,2]
[359141560,1745734244594,-1924.77,0.0001726,2]
[359141561,1745734244603,-400.0,0.0001726,2]
[359141562,1745734244612,-151.0,0.0001726,2]
[359141563,1745734244622,-400.0,0.0001726,2]
[359141564,1745734244631,-400.0,0.0001726,2]
[359141565,1745734244640,-400.0,0.0001726,2]
[359141566,1745734244650,-400.0,0.0001726,2]
[359141567,1745734244660,-400.0,0.0001726,2]
[359141568,1745734244671,-400.0,0.0001726,2]
[359141569,1745734244680,-400.0,0.0001726,2]
[359141570,1745734244690,-400.0,0.0001726,2]
[359141571,1745734244700,-400.0,0.0001726,2]
[359141572,1745734244711,-400.0,0.0001726,2]
[359141573,1745734244721,-400.0,0.0001726,2]
[359141574,1745734244730,-400.0,0.0001726,2]
[359141575,1745734244741,-400.0,0.0001726,2]
[359141576,1745734244750,-400.0,0.0001726,2]
[359141577,1745734244760,-190.834376,0.0001726,2]
[359141578,1745734244770,-400.0,0.0001726,2]
[359141579,1745734244779,-190.834376,0.0001726,2]
[359141580,1745734244788,-400.0,0.0001726,2]
[359141581,1745734244798,-400.0,0.0001726,2]
[359141582,1745734244809,-400.0,0.0001726,2]
[359141583,1745734244819,-400.0,0.0001726,2]
[359141584,1745734244831,-400.0,0.0001726,2]
[359141585,1745734244841,-400.0,0.0001726,2]
[359141586,1745734244850,-815.37794249,0.0001726,2]